[Event "WYCC 2018 G18"]
[Site "Halkidiki"]
[Date "2018.10.23"]
[Round "5"]
[White "Belluire, Beatrice"]
[Black "Cosme Contreras, Trilce"]
[Result "0-1"]
[ECO "B99"]
[WhiteElo "1931"]
[BlackElo "1829"]
[Annotator "NA"]
[PlyCount "88"]
[EventDate "2018.10.20"]
[EventType "swiss"]
[EventCountry "GRE"]
[SourceTitle "playchess.com"]
[Source "ChessBase"]
[SourceQuality "1"]
[TimeControl "40/5400+30:1800+30"]

1. e4 {[%emt 0:00:00]} c5 {[%emt 0:03:15]} 2. Nf3 {[%emt 0:00:00]} d6 {[%emt 0:00:26]} 3. d4 {[%emt 0:00:00]} cxd4 {[%emt 0:00:08]} 4. Nxd4 {[%emt 0:00:00]} Nf6 {[%emt 0:00:07]} 5. Nc3 {[%emt 0:00:00]} a6 {[%emt 0:00:04]} 6. Bg5 {[%emt 0:00:06]} e6 {[%emt 0:00:23]} 7. f4 {[%emt 0:00:07]} Be7 {[%emt 0:00:17]} 8. Qf3 {[%emt 0:00:14]} Qc7 {[%emt 0:01:20]} 9. O-O-O {[%emt 0:00:17]} Nbd7 {[%emt 0:00:52]} 10. Bxf6 {[%emt 0:01:18]} Nxf6 {[%emt 0:03:38]} 11. g4 {[%emt 0:00:06]} b5 {[%emt 0:01:51]} 12. g5 {[%emt 0:03:50]} Nd7 {[%emt 0:00:30]} 13. f5 {[%emt 0:00:10]} Bxg5+ {[%emt 0:00:05]} 14. Kb1 {[%emt 0:00:01]} Ne5 {[%emt 0:01:12]} 15. Qh5 {[%emt 0:00:09]} Qd8 {[%emt 0:00:58]} 16. h4 {[%emt 0:00:05]} Bf6 {[%emt 0:04:28]} 17. Nxe6 {[%emt 0:03:22]} Bxe6 {[%emt 0:00:11]} 18. fxe6 {[%emt 0:00:05]} O-O {[%emt 0:00:38]} 19. exf7+ {[%emt 0:04:39]} Kh8 {[%emt 0:01:00]} 20. Bh3 {[%emt 0:01:04]} Rxf7 {[%emt 0:04:21]} 21. Nd5 {[%emt 0:04:20]} Rf8 {[%emt 0:12:55]} 22. Nf4 {[%emt 0:17:47]} Qe8 {[%emt 0:08:24]} 23. Qe2 {[%emt 0:31:33]} Nc4 {[%emt 0:06:11]} 24. h5 {[%emt 0:03:23]} Qe5 {[%emt 0:03:28]} 25. Nd3 {[%emt 0:01:51]} Qd4 {[%emt 0:08:25]} 26. c3 {[%emt 0:10:59]} Qe3 {[%emt 0:02:33]} 27. Qg2 {[%emt 0:07:54]} Qh6 {[%emt 0:01:00]} 28. Qf2 {[%emt 0:03:18]} Bxc3 {[%emt 0:08:12]} 29. Bf5 {[%emt 0:00:10]} Bd2 {[%emt 0:00:25]} 30. Rxd2 {[%emt 0:03:14]} Nxd2+ {[%emt 0:02:11]} 31. Ka1 {[%emt 0:00:37]} Nxe4 {[%emt 0:01:15]} 32. Qf3 {[%emt 0:01:19]} Ng3 {[%emt 0:02:27]} 33. Nf4 {[%emt 0:01:04]} Nxf5 {[%emt 0:00:41]} 34. Ng6+ {[%emt 0:00:55]} hxg6 {[%emt 0:01:01]} 35. hxg6 {[%emt 0:00:05]} Nh4 {[%emt 0:00:25]} 36. Qg4 {[%emt 0:01:13]} Rf4 {[%emt 0:00:18]} 37. Qg3 {[%emt 0:00:38]} Raf8 {[%emt 0:00:13]} 38. a3 {[%emt 0:00:23]} Qg5 {[%emt 0:01:08]} 39. Qe1 {[%emt 0:00:00]} Qf6 {[%emt 0:00:00]} 40. Qe2 {[%emt 0:00:00]} Qxg6 {[%emt 0:00:00]} 41. Qe1 {[%emt 0:01:41]} Qf6 {[%emt 0:01:19]} 42. Qg3 {[%emt 0:00:14]} Rf1+ {[%emt 0:00:20]} 43. Rxf1 {[%emt 0:00:07]} Qxf1+ {[%emt 0:00:04]} 44. Ka2 {[%emt 0:00:07]} Qc4+ {[%emt 0:00:03]} 0-1

[Event "WYCC 2018 G18"]
[Site "Halkidiki"]
[Date "2018.10.23"]
[Round "5"]
[White "Zairbek kyzy, Begimay"]
[Black "Manriquez Abarzua, Maria Belen"]
[Result "1-0"]
[ECO "C51"]
[WhiteElo "1919"]
[BlackElo "1630"]
[Annotator "NA"]
[PlyCount "83"]
[EventDate "2018.10.20"]
[EventType "swiss"]
[EventCountry "GRE"]
[SourceTitle "playchess.com"]
[Source "ChessBase"]
[SourceQuality "1"]
[TimeControl "40/5400+30:1800+30"]

1. e4 {[%emt 0:00:00]} e5 {[%emt 0:00:00]} 2. Nf3 {[%emt 0:00:30]} Nc6 {[%emt 0:00:30]} 3. Bc4 {[%emt 0:00:00]} Bc5 {[%emt 0:00:51]} 4. b4 {[%emt 0:00:26]} Bxb4 {[%emt 0:05:34]} 5. c3 {[%emt 0:00:46]} Bc5 {[%emt 0:05:05]} 6. d4 {[%emt 0:00:08]} exd4 {[%emt 0:04:40]} 7. cxd4 {[%emt 0:00:06]} Bb4+ {[%emt 0:00:31]} 8. Bd2 {[%emt 0:00:12]} Bxd2+ {[%emt 0:00:31]} 9. Nbxd2 {[%emt 0:00:04]} d6 {[%emt 0:02:13]} 10. h3 {[%emt 0:01:36]} Nf6 {[%emt 0:13:33]} 11. O-O {[%emt 0:08:37]} O-O {[%emt 0:00:56]} 12. Bd3 {[%emt 0:00:40]} Re8 {[%emt 0:06:14]} 13. Rb1 {[%emt 0:01:32]} Ne7 {[%emt 0:02:35]} 14. Qb3 {[%emt 0:04:50]} Ng6 {[%emt 0:05:54]} 15. Bc4 {[%emt 0:03:49]} Rf8 {[%emt 0:04:52]} 16. e5 {[%emt 0:07:29]} d5 {[%emt 0:03:17]} 17. Bd3 {[%emt 0:01:13]} Nh5 {[%emt 0:01:57]} 18. Rfe1 {[%emt 0:00:47]} Nhf4 {[%emt 0:00:37]} 19. Bc2 {[%emt 0:01:52]} b6 {[%emt 0:02:52]} 20. Rbd1 {[%emt 0:02:00]} Ba6 {[%emt 0:06:48]} 21. Qe3 {[%emt 0:02:17]} Ne6 {[%emt 0:05:00]} 22. g3 {[%emt 0:03:35]} Qe7 {[%emt 0:05:00]} 23. h4 {[%emt 0:04:00]} Rfd8 {[%emt 0:03:32]} 24. h5 {[%emt 0:05:12]} Ngf8 {[%emt 0:00:12]} 25. Nh4 {[%emt 0:00:33]} c5 {[%emt 0:06:25]} 26. Nf5 {[%emt 0:01:50]} Qc7 {[%emt 0:00:17]} 27. Nf3 {[%emt 0:06:03]} cxd4 {[%emt 0:04:36]} 28. N3xd4 {[%emt 0:01:07]} Nxd4 {[%emt 0:02:23]} 29. Nxd4 {[%emt 0:00:07]} Bc8 {[%emt 0:02:20]} 30. Rc1 {[%emt 0:01:00]} Qb7 {[%emt 0:00:55]} 31. h6 {[%emt 0:01:05]} g6 {[%emt 0:01:23]} 32. Qg5 {[%emt 0:00:41]} Re8 {[%emt 0:00:44]} 33. Ba4 {[%emt 0:01:50]} Qe7 {[%emt 0:00:36]} 34. Qf4 {[%emt 0:01:05]} Bd7 {[%emt 0:01:04]} 35. Rc7 {[%emt 0:01:38]} Rec8 {[%emt 0:00:36]} 36. Rb7 {[%emt 0:08:02]} Qd8 {[%emt 0:01:45]} 37. Bxd7 {[%emt 0:00:36]} Nxd7 {[%emt 0:00:52]} 38. Rxd7 {[%emt 0:00:23]} Qxd7 {[%emt 0:00:17]} 39. Qf6 {[%emt 0:00:02]} Kf8 {[%emt 0:00:20]} 40. e6 {[%emt 0:00:00]} Qb7 {[%emt 0:00:00]} 41. Qg7+ {[%emt 0:01:02]} Ke8 {[%emt 0:02:05]} 42. exf7+ {[%emt 0:00:27]} 1-0

[Event "WYCC 2018 G18"]
[Site "Halkidiki"]
[Date "2018.10.23"]
[Round "5"]
[White "Tsivelekidou, Evgenia"]
[Black "Salas Estrada, Ana Valeria"]
[Result "1-0"]
[ECO "E61"]
[WhiteElo "1891"]
[BlackElo "1593"]
[Annotator "NA"]
[PlyCount "57"]
[EventDate "2018.10.20"]
[EventType "swiss"]
[EventCountry "GRE"]
[SourceTitle "playchess.com"]
[Source "ChessBase"]
[SourceQuality "1"]
[TimeControl "40/5400+30:1800+30"]

1. d4 {[%emt 0:00:00]} Nf6 {[%emt 0:00:00]} 2. c4 {[%emt 0:00:00]} g6 {[%emt 0:00:00]} 3. Nc3 {[%emt 0:00:00]} Bg7 {[%emt 0:00:00]} 4. Nf3 {[%emt 0:00:00]} O-O {[%emt 0:00:00]} 5. Bf4 {[%emt 0:00:00]} d6 {[%emt 0:00:11]} 6. h3 {[%emt 0:00:00]} Nfd7 {[%emt 0:04:34]} 7. e3 {[%emt 0:00:54]} c5 {[%emt 0:04:04]} 8. Be2 {[%emt 0:01:14]} Nc6 {[%emt 0:02:05]} 9. O-O {[%emt 0:07:16]} Re8 {[%emt 0:05:38]} 10. d5 {[%emt 0:05:11]} Nce5 {[%emt 0:01:56]} 11. Nxe5 {[%emt 0:04:30]} Nxe5 {[%emt 0:04:49]} 12. Qd2 {[%emt 0:02:23]} a6 {[%emt 0:04:17]} 13. e4 {[%emt 0:03:51]} Rb8 {[%emt 0:08:55]} 14. Bh6 {[%emt 0:03:06]} Bh8 {[%emt 0:10:19]} 15. f4 {[%emt 0:07:37]} Nd7 {[%emt 0:01:00]} 16. Kh1 {[%emt 0:05:22]} Qa5 {[%emt 0:02:42]} 17. a4 {[%emt 0:07:14]} Bxc3 {[%emt 0:05:37]} 18. bxc3 {[%emt 0:02:35]} Nf6 {[%emt 0:02:24]} 19. Bd3 {[%emt 0:09:45]} Nh5 {[%emt 0:06:25]} 20. Kg1 {[%emt 0:07:33]} e6 {[%emt 0:09:58]} 21. f5 {[%emt 0:07:04]} exd5 {[%emt 0:03:03]} 22. exd5 {[%emt 0:01:44]} Ng3 {[%emt 0:03:12]} 23. Rf3 {[%emt 0:03:06]} Nxf5 {[%emt 0:04:00]} 24. Bxf5 {[%emt 0:00:59]} Bxf5 {[%emt 0:02:44]} 25. Rxf5 {[%emt 0:00:46]} b5 {[%emt 0:00:56]} 26. Rf3 {[%emt 0:03:10]} b4 {[%emt 0:02:12]} 27. Qf4 {[%emt 0:01:37]} f5 {[%emt 0:02:24]} 28. Qxd6 {[%emt 0:01:38]} b3 {[%emt 0:01:48]} 29. Qd7 {[%emt 0:01:32]} 1-0

[Event "WYCC 2018 G18"]
[Site "Halkidiki"]
[Date "2018.10.23"]
[Round "5"]
[White "Nistor, Valentina"]
[Black "Arpita, Mukherjee"]
[Result "0-1"]
[ECO "B90"]
[WhiteElo "1881"]
[BlackElo "2147"]
[Annotator "NA"]
[PlyCount "108"]
[EventDate "2018.10.20"]
[EventType "swiss"]
[EventCountry "GRE"]
[SourceTitle "playchess.com"]
[Source "ChessBase"]
[SourceQuality "1"]
[TimeControl "40/5400+30:1800+30"]

1. e4 {[%emt 0:00:00]} c5 {[%emt 0:00:00]} 2. Nf3 {[%emt 0:00:00]} d6 {[%emt 0:00:00]} 3. d4 {[%emt 0:00:00]} cxd4 {[%emt 0:00:00]} 4. Nxd4 {[%emt 0:00:00]} Nf6 {[%emt 0:00:05]} 5. Nc3 {[%emt 0:00:00]} a6 {[%emt 0:00:04]} 6. a4 {[%emt 0:00:06]} e6 {[%emt 0:03:08]} 7. Bc4 {[%emt 0:04:44]} Be7 {[%emt 0:00:33]} 8. O-O {[%emt 0:02:24]} O-O {[%emt 0:00:27]} 9. Be3 {[%emt 0:06:49]} Qc7 {[%emt 0:01:39]} 10. Qe2 {[%emt 0:02:02]} Nc6 {[%emt 0:04:56]} 11. Rfd1 {[%emt 0:04:46] B88: Sicilian: Sozin Attack} Ne5 {[%emt 0:05:23]} 12. Bb3 {[%emt 0:02:02]} Neg4 {[%emt 0:02:34]} 13. h3 {[%emt 0:05:40]} Nxe3 {[%emt 0:00:30]} 14. Qxe3 {[%emt 0:01:42]} b6 {[%emt 0:01:18] [#]} 15. Rd3 $146 {[%emt 0:03:58]} ({Predecessor:} 15. Rd2 Qc5 16. Re1 g6 17. Qd3 Ra7 18. Bc4 Nh5 {0-1 (47) Tomkovich,V (2505)-Poulsen,A (2590) ICCF corr 1996}) 15... Re8 {[%emt 0:18:26]} 16. Qg3 {[%emt 0:06:35]} Bd7 {[%emt 0:06:28]} 17. Rad1 {[%emt 0:05:22]} Rab8 {[%emt 0:06:12]} 18. f4 {[%emt 0:16:04]} e5 {[%emt 0:06:54]} 19. Nde2 {[%emt 0:02:56]} Bc6 {[%emt 0:01:18]} 20. Qf3 {[%emt 0:01:52]} b5 {[%emt 0:02:29]} 21. axb5 {[%emt 0:00:48]} axb5 {[%emt 0:00:03]} 22. Ng3 {[%emt 0:03:41]} b4 {[%emt 0:04:20]} 23. Nd5 $15 {[%emt 0:07:14]} Nxd5 {[%emt 0:03:44]} 24. Bxd5 {[%emt 0:06:05]} Bxd5 {[%emt 0:04:26]} 25. Rxd5 {[%emt 0:00:26]} Qxc2 {[%emt 0:01:01]} 26. Nf5 {[%emt 0:01:45]} exf4 {[%emt 0:04:32]} 27. Qxf4 {[%emt 0:05:15]} Bf8 {[%emt 0:02:21]} 28. Nxd6 {[%emt 0:02:46]} Bxd6 {[%emt 0:00:05]} 29. Rxd6 {[%emt 0:01:07]} Qxb2 {[%emt 0:01:14]} 30. Rd7 {[%emt 0:03:36]} Qf6 {[%emt 0:00:18]} 31. Qxf6 {[%emt 0:01:17]} gxf6 {[%emt 0:00:02]} 32. R7d4 {[%emt 0:00:34]} Rec8 {[%emt 0:02:09]} 33. Rb1 {[%emt 0:02:10]} b3 {[%emt 0:00:12]} 34. Rd2 {[%emt 0:00:59]} Rb4 {[%emt 0:02:41]} 35. Rdb2 {[%emt 0:01:06]} Rc3 {[%emt 0:01:54]} 36. Kf2 {[%emt 0:01:01]} Kg7 {[%emt 0:00:42]} 37. Kg1 {[%emt 0:00:49]} Kg6 {[%emt 0:00:08]} 38. Kh2 {[%emt 0:00:26]} Kg5 {[%emt 0:00:25]} 39. Kg1 {[%emt 0:00:48]} Kf4 {[%emt 0:01:24]} 40. Rf2+ {[%emt 0:00:00]} Kxe4 {[%emt 0:00:00]} 41. Re1+ {[%emt 0:06:21]} Re3 {[%emt 0:00:41]} 42. Rb1 {[%emt 0:02:01]} f5 {[%emt 0:01:36]} 43. Rbf1 {[%emt 0:02:09]} Rb5 {[%emt 0:00:44]} 44. Rb1 {[%emt 0:00:52]} f4 {[%emt 0:03:20]} 45. Kh2 {[%emt 0:07:56]} f3 {[%emt 0:01:10]} 46. gxf3+ {[%emt 0:00:21]} Rxf3 {[%emt 0:00:02]} 47. Rg2 {[%emt 0:01:31]} f5 {[%emt 0:00:06]} 48. Rd2 {[%emt 0:04:16]} f4 {[%emt 0:00:38]} 49. Rbb2 {[%emt 0:01:46]} Rd3 {[%emt 0:01:08]} 50. Re2+ {[%emt 0:01:21]} Re3 {[%emt 0:00:02]} 51. Red2 {[%emt 0:00:07]} f3 {[%emt 0:00:02]} 52. Kg3 {[%emt 0:00:53]} Re2 {[%emt 0:00:08]} 53. Rxe2+ {[%emt 0:00:56]} fxe2 {[%emt 0:00:02]} 54. Rxe2+ {[%emt 0:01:42]} Kd3 {[%emt 0:00:02]} 0-1

[Event "WYCC 2018 G18"]
[Site "Halkidiki"]
[Date "2018.10.23"]
[Round "5"]
[White "Buchta, Agnieszka"]
[Black "Di Benedetto, Desiree"]
[Result "0-1"]
[ECO "C02"]
[WhiteElo "1879"]
[BlackElo "2321"]
[Annotator "NA"]
[PlyCount "130"]
[EventDate "2018.10.20"]
[EventType "swiss"]
[EventCountry "GRE"]
[SourceTitle "playchess.com"]
[Source "ChessBase"]
[SourceQuality "1"]
[TimeControl "40/5400+30:1800+30"]

1. e4 {[%emt 0:00:00]} e6 {[%emt 0:00:00]} 2. d4 {[%emt 0:00:00]} d5 {[%emt 0:00:00]} 3. e5 {[%emt 0:00:00]} c5 {[%emt 0:00:00]} 4. c3 {[%emt 0:00:00]} Nc6 {[%emt 0:00:00]} 5. Nf3 {[%emt 0:00:00]} Nge7 {[%emt 0:00:00]} 6. Be2 {[%emt 0:00:58]} Nf5 {[%emt 0:03:30]} 7. dxc5 {[%emt 0:01:33]} Bxc5 {[%emt 0:00:49]} 8. O-O {[%emt 0:00:32] C02: French: Advance Variation} (8. b4 Be7 9. b5 Na5 10. O-O b6 11. Nbd2 Bb7 12. Nd4 Rc8 13. Nxf5 exf5 14. Nf3 O-O 15. Qd3 g6 {½-½ (24) Cozianu,C (2439)-Li,R (2408) ICC INT 2015}) 8... Qc7 {[%emt 0:07:49]} 9. Re1 $146 {[%emt 0:08:58]} ({Predecessor:} 9. b4 Bb6 10. Re1 a5 11. Bd3 axb4 12. Bxf5 exf5 13. Qxd5 Be6 14. Qd2 b3 15. Na3 O-O 16. axb3 Bxb3 {1-0 (26) Koubek,V (2178)-Slosar,J (2135) Czechia 2002}) 9... Qb6 {[%emt 0:00:26]} 10. Rf1 {[%emt 0:01:33]} Qc7 {[%emt 0:07:12]} 11. Re1 {[%emt 0:02:36]} Nfe7 {[%emt 0:01:57]} 12. b4 {[%emt 0:05:46]} Bb6 {[%emt 0:00:10]} 13. a4 {[%emt 0:00:22]} Qb8 {[%emt 0:06:25]} 14. Bd3 {[%emt 0:06:50]} Ng6 {[%emt 0:05:37]} 15. Bxg6 {[%emt 0:13:11]} hxg6 {[%emt 0:01:12]} 16. Qe2 {[%emt 0:08:55]} f6 {[%emt 0:11:37]} 17. b5 {[%emt 0:06:50]} Nxe5 {[%emt 0:04:28]} 18. Nxe5 {[%emt 0:07:56]} Qxe5 {[%emt 0:00:42]} 19. Qxe5 {[%emt 0:03:54]} fxe5 {[%emt 0:00:01]} 20. Rxe5 {[%emt 0:00:49]} Bc7 {[%emt 0:02:34]} 21. Bf4 {[%emt 0:01:41]} Bxe5 {[%emt 0:01:21]} 22. Bxe5 {[%emt 0:02:30]} O-O {[%emt 0:01:49]} 23. Nd2 {[%emt 0:01:46]} Bd7 {[%emt 0:01:44]} 24. Nf3 {[%emt 0:04:48]} Rfc8 {[%emt 0:05:07]} 25. Bd4 {[%emt 0:01:47]} Be8 {[%emt 0:07:25]} 26. h4 {[%emt 0:08:24]} a6 {[%emt 0:03:08]} 27. b6 {[%emt 0:00:45]} Rc4 {[%emt 0:02:14]} 28. a5 {[%emt 0:01:12]} Rac8 {[%emt 0:04:47]} 29. Ra3 {[%emt 0:01:03]} Ra4 {[%emt 0:05:33]} 30. Rxa4 {[%emt 0:00:28]} Bxa4 {[%emt 0:00:01]} 31. Ne5 {[%emt 0:00:26]} Be8 {[%emt 0:00:26]} 32. g3 {[%emt 0:02:52]} Kf8 {[%emt 0:00:31]} 33. Kg2 {[%emt 0:00:34]} Ke7 {[%emt 0:01:11]} 34. Kf3 {[%emt 0:01:05]} Kd6 {[%emt 0:00:25]} 35. Kf4 {[%emt 0:06:34]} Rc5 {[%emt 0:01:49]} 36. Kg5 {[%emt 0:00:31]} Rxa5 {[%emt 0:04:07]} 37. Nxg6 {[%emt 0:00:13]} Bxg6 {[%emt 0:00:37]} 38. Kxg6 {[%emt 0:00:02]} e5 {[%emt 0:01:25]} 39. Be3 {[%emt 0:00:42]} Ra1 {[%emt 0:01:58]} 40. h5 {[%emt 0:00:00]} Rh1 {[%emt 0:00:00]} 41. Bg5 {[%emt 0:10:33]} d4 {[%emt 0:06:43]} 42. cxd4 {[%emt 0:11:47]} exd4 {[%emt 0:00:05]} 43. Bd2 {[%emt 0:07:21]} Kc5 {[%emt 0:17:49]} 44. g4 {[%emt 0:00:38]} Kb5 {[%emt 0:00:59]} 45. Kxg7 {[%emt 0:02:46]} a5 {[%emt 0:00:04]} 46. h6 {[%emt 0:01:01]} a4 {[%emt 0:00:05]} 47. h7 {[%emt 0:00:34]} Rxh7+ {[%emt 0:00:56]} 48. Kxh7 {[%emt 0:00:02]} a3 {[%emt 0:00:01]} 49. g5 {[%emt 0:00:50]} a2 {[%emt 0:00:06]} 50. g6 {[%emt 0:00:20]} a1=Q {[%emt 0:00:05]} 51. g7 {[%emt 0:00:15]} Qb1+ {[%emt 0:03:08]} 52. Kh6 {[%emt 0:00:48]} Qh1+ {[%emt 0:01:39]} 53. Kg6 {[%emt 0:00:12]} Qe4+ {[%emt 0:03:37]} 54. Kh6 {[%emt 0:00:34]} Qe6+ {[%emt 0:00:45]} 55. Kh7 {[%emt 0:00:47]} Qf5+ {[%emt 0:00:19]} 56. Kh6 {[%emt 0:00:36]} Qf7 {[%emt 0:00:12]} 57. Kh7 {[%emt 0:00:25]} Kxb6 {[%emt 0:00:53]} 58. Bh6 {[%emt 0:00:44]} Kc5 {[%emt 0:04:23]} 59. Bd2 {[%emt 0:00:36]} b5 {[%emt 0:00:12]} 60. f4 {[%emt 0:00:20]} b4 {[%emt 0:01:10]} 61. Kh8 {[%emt 0:00:26]} Qh5+ {[%emt 0:00:17]} 62. Kg8 {[%emt 0:00:03]} b3 {[%emt 0:00:07]} 63. Kf8 {[%emt 0:01:11]} Qf5+ {[%emt 0:00:23]} 64. Ke7 {[%emt 0:00:31]} Qg6 {[%emt 0:00:11]} 65. Kf8 {[%emt 0:00:30]} Qf6+ {[%emt 0:00:09]} 0-1

[Event "WYCC 2018 G18"]
[Site "Halkidiki"]
[Date "2018.10.23"]
[Round "5"]
[White "Nguyen, Thi Minh Thu"]
[Black "Hrescak, Ivana"]
[Result "1/2-1/2"]
[ECO "E97"]
[WhiteElo "1849"]
[BlackElo "2173"]
[Annotator "NA"]
[PlyCount "71"]
[EventDate "2018.10.20"]
[EventType "swiss"]
[EventCountry "GRE"]
[SourceTitle "playchess.com"]
[Source "ChessBase"]
[SourceQuality "1"]
[TimeControl "40/5400+30:1800+30"]

1. d4 {[%emt 0:00:00]} Nf6 {[%emt 0:00:00]} 2. c4 {[%emt 0:00:00]} g6 {[%emt 0:00:00]} 3. Nc3 {[%emt 0:00:03]} Bg7 {[%emt 0:00:00]} 4. e4 {[%emt 0:00:37]} d6 {[%emt 0:00:00]} 5. Nf3 {[%emt 0:00:43]} O-O {[%emt 0:00:08]} 6. Be2 {[%emt 0:00:52]} e5 {[%emt 0:00:19]} 7. O-O {[%emt 0:01:11]} Nc6 {[%emt 0:00:08]} 8. dxe5 {[%emt 0:02:51]} dxe5 {[%emt 0:04:48]} 9. Qxd8 {[%emt 0:01:51]} Rxd8 {[%emt 0:00:14]} 10. Bg5 {[%emt 0:00:35]} Re8 {[%emt 0:08:46]} 11. h3 {[%emt 0:05:41]} Be6 {[%emt 0:11:44]} 12. Rfd1 {[%emt 0:01:51]} h6 $14 {[%emt 0:05:55]} 13. Be3 {[%emt 0:00:20]} Nd7 {[%emt 0:12:07]} 14. Nd5 {[%emt 0:04:32]} Rac8 {[%emt 0:05:17]} 15. Ne1 {[%emt 0:03:00]} Nd4 {[%emt 0:04:58]} 16. Bf1 {[%emt 0:00:50]} c6 {[%emt 0:03:18]} 17. Nc3 {[%emt 0:00:26]} Rcd8 {[%emt 0:04:18]} 18. Rac1 {[%emt 0:01:31]} Nf8 {[%emt 0:01:43]} 19. f3 {[%emt 0:02:25]} Rd7 {[%emt 0:01:43]} 20. b3 {[%emt 0:02:56]} Red8 {[%emt 0:01:19]} 21. Nd3 {[%emt 0:01:29]} b6 {[%emt 0:00:35]} 22. Nb2 {[%emt 0:01:19]} f5 {[%emt 0:04:56]} 23. Bd3 {[%emt 0:03:46]} f4 {[%emt 0:07:32]} 24. Bf2 {[%emt 0:01:26]} g5 {[%emt 0:00:30]} 25. b4 {[%emt 0:02:30]} h5 {[%emt 0:02:18]} 26. b5 {[%emt 0:00:28]} cxb5 {[%emt 0:03:34]} 27. cxb5 {[%emt 0:00:06]} Ng6 {[%emt 0:04:58]} 28. Kf1 {[%emt 0:04:34]} Ne7 {[%emt 0:02:24]} 29. Bc4 {[%emt 0:05:28]} Bxc4+ {[%emt 0:00:23]} 30. Nxc4 {[%emt 0:03:49]} Rc8 {[%emt 0:00:38]} 31. Nb2 {[%emt 0:00:55]} Rdc7 {[%emt 0:00:51]} 32. Bxd4 {[%emt 0:02:05]} exd4 {[%emt 0:00:06]} 33. Ne2 {[%emt 0:00:06]} Rc2 {[%emt 0:02:08]} 34. Rb1 {[%emt 0:02:06]} d3 {[%emt 0:05:12]} 35. Nxd3 {[%emt 0:02:26]} Rxa2 {[%emt 0:00:13]} 36. h4 {[%emt 0:00:48]} 1/2-1/2

[Event "WYCC 2018 G18"]
[Site "Halkidiki"]
[Date "2018.10.23"]
[Round "5"]
[White "Tonso, Liina"]
[Black "Kieu, Bich Thuy"]
[Result "0-1"]
[ECO "B06"]
[WhiteElo "1805"]
[BlackElo "1913"]
[Annotator "NA"]
[PlyCount "102"]
[EventDate "2018.10.20"]
[EventType "swiss"]
[EventCountry "GRE"]
[SourceTitle "playchess.com"]
[Source "ChessBase"]
[SourceQuality "1"]
[TimeControl "40/5400+30:1800+30"]

1. e4 {[%emt 0:00:00]} g6 {[%emt 0:00:00]} 2. d4 {[%emt 0:00:00]} Bg7 {[%emt 0:00:00]} 3. h4 {[%emt 0:00:09]} d6 {[%emt 0:03:53]} 4. Nc3 {[%emt 0:03:22]} Nf6 {[%emt 0:01:44]} 5. f3 {[%emt 0:04:03]} Nc6 {[%emt 0:05:40]} 6. Be3 {[%emt 0:03:38]} a6 {[%emt 0:04:05]} 7. Qd2 {[%emt 0:04:30]} h5 {[%emt 0:02:16]} 8. O-O-O {[%emt 0:05:12]} O-O {[%emt 0:01:20]} 9. Nh3 {[%emt 0:10:03]} b5 {[%emt 0:08:24]} 10. Nf2 {[%emt 0:05:34]} e5 {[%emt 0:14:48]} 11. d5 {[%emt 0:05:11]} Na5 {[%emt 0:01:03]} 12. b3 {[%emt 0:04:37]} Nb7 {[%emt 0:06:21]} 13. Be2 {[%emt 0:09:29]} Nc5 {[%emt 0:04:20]} 14. a3 {[%emt 0:13:09]} Rb8 {[%emt 0:12:43]} 15. g4 {[%emt 0:02:21]} Qe7 {[%emt 0:09:46]} 16. Bg5 {[%emt 0:03:14]} hxg4 {[%emt 0:05:46]} 17. fxg4 {[%emt 0:01:49]} b4 {[%emt 0:02:35]} 18. axb4 {[%emt 0:02:15]} Rxb4 {[%emt 0:00:13]} 19. h5 {[%emt 0:04:20]} Qd7 {[%emt 0:01:05]} 20. h6 {[%emt 0:03:59]} Bh8 {[%emt 0:00:41]} 21. h7+ {[%emt 0:01:13]} Nxh7 {[%emt 0:01:40]} 22. Rxh7 {[%emt 0:00:58]} Kxh7 {[%emt 0:01:17]} 23. Rh1+ {[%emt 0:00:52]} Kg8 {[%emt 0:00:07]} 24. Rxh8+ {[%emt 0:00:47]} Kg7 {[%emt 0:02:08]} 25. Bf6+ {[%emt 0:01:35]} Kxf6 {[%emt 0:00:26]} 26. Rxf8 {[%emt 0:01:16]} Kg7 {[%emt 0:01:08]} 27. Rxc8 {[%emt 0:00:56]} Qxc8 {[%emt 0:00:05]} 28. Na4 {[%emt 0:01:19]} Rd4 {[%emt 0:01:08]} 29. Qa5 {[%emt 0:02:03]} Nxe4 {[%emt 0:01:08]} 30. Nxe4 {[%emt 0:03:12]} Rxe4 {[%emt 0:00:04]} 31. Nc3 {[%emt 0:01:03]} Rf4 {[%emt 0:00:59]} 32. Bxa6 {[%emt 0:01:11]} Qa8 {[%emt 0:01:31]} 33. Qb5 {[%emt 0:00:51]} Rxg4 {[%emt 0:00:22]} 34. Kb2 {[%emt 0:00:37]} Rf4 {[%emt 0:01:15]} 35. Qc6 {[%emt 0:00:58]} Qd8 {[%emt 0:03:28]} 36. Nb5 {[%emt 0:00:35]} g5 {[%emt 0:00:40]} 37. Nxc7 {[%emt 0:00:23]} g4 {[%emt 0:01:18]} 38. Ne8+ {[%emt 0:00:39]} Kg8 {[%emt 0:00:57]} 39. Bb5 {[%emt 0:01:23]} g3 {[%emt 0:01:12]} 40. Qc3 {[%emt 0:00:00]} Qg5 {[%emt 0:00:00]} 41. Nxd6 {[%emt 0:02:29]} g2 {[%emt 0:03:56]} 42. Qc8+ {[%emt 0:01:45]} Kg7 {[%emt 0:01:00]} 43. Ne8+ {[%emt 0:00:54]} Kh6 {[%emt 0:01:48]} 44. Qc6+ {[%emt 0:04:40]} Qg6 {[%emt 0:03:23]} 45. Nd6 {[%emt 0:03:14]} Rf6 {[%emt 0:05:59]} 46. Nxf7+ {[%emt 0:02:00]} Rxf7 {[%emt 0:01:05]} 47. Qc8 {[%emt 0:03:25]} g1=Q {[%emt 0:00:51]} 48. Qh8+ {[%emt 0:00:53]} Qh7 {[%emt 0:00:24]} 49. Qe8 {[%emt 0:01:00]} Qd4+ {[%emt 0:00:15]} 50. Ka3 {[%emt 0:00:33]} Ra7+ {[%emt 0:01:03]} 51. Ba4 {[%emt 0:00:06]} Qc5+ {[%emt 0:00:14]} 0-1